[Event "2nd Goa GM Open 2019"]
[Site "Goa"]
[Date "2019.06.18"]
[Round "1.28"]
[White "Kostenko, Petr"]
[Black "Kiran, Manisha Mohanty"]
[Result "1-0"]
[ECO "B51"]
[WhiteElo "2473"]
[BlackElo "2090"]
[Annotator "ChessBase"]
[PlyCount "85"]
[EventDate "2019.06.17"]
[EventType "swiss"]
[EventCountry "IND"]
[SourceTitle "playchess.com"]
[Source "ChessBase"]
[SourceQuality "1"]
[TimeControl "5400+30"]

1. e4 {[%emt 0:00:00]} c5 {[%emt 0:00:00]} 2. Nf3 {[%emt 0:00:00]} d6 {[%emt 0:00:00]} 3. Bb5+ {[%emt 0:00:00]} Nd7 {[%emt 0:00:00]} 4. Ba4 {[%emt 0:00:06]} Ngf6 {[%emt 0:00:29]} 5. O-O {[%emt 0:00:06]} a6 {[%emt 0:00:06]} 6. c4 {[%emt 0:00:06]} e6 {[%emt 0:00:26]} 7. Nc3 {[%emt 0:00:11]} Be7 8. d3 {[%emt 0:09:46]} O-O {[%emt 0:07:07]} 9. a3 {[%emt 0:00:08]} b6 {[%emt 0:01:45]} 10. Rb1 {[%emt 0:02:05]} Bb7 {[%emt 0:02:52]} 11. b4 {[%emt 0:00:18]} Qc7 {[%emt 0:01:05]} 12. Bd2 {[%emt 0:08:32]} Rab8 {[%emt 0:03:50]} 13. Re1 {[%emt 0:01:40]} Ba8 {[%emt 0:00:30]} 14. h3 {[%emt 0:00:30]} Ne5 {[%emt 0:00:30]} 15. Nxe5 dxe5 16. Bc2 {[%emt 0:10:49]} Rfd8 {[%emt 0:20:35]} 17. Rf1 {[%emt 0:09:37]} h6 {[%emt 0:12:40]} 18. g3 {[%emt 0:03:57]} Rd7 {[%emt 0:03:40]} 19. Qe2 {[%emt 0:01:09]} Rbd8 {[%emt 0:00:17]} 20. Kh2 {[%emt 0:02:18]} b5 {[%emt 0:06:29]} 21. Rfd1 {[%emt 0:08:46]} Rd4 {[%emt 0:21:01]} 22. cxb5 {[%emt 0:01:55]} cxb4 {[%emt 0:01:06]} 23. axb4 {[%emt 0:00:39]} axb5 {[%emt 0:04:42]} 24. Be1 {[%emt 0:03:33]} Bc6 {[%emt 0:00:32]} 25. Na2 {[%emt 0:02:53]} Nh7 {[%emt 0:03:20]} 26. Nc1 {[%emt 0:02:13]} R4d7 {[%emt 0:00:45]} 27. Nb3 {[%emt 0:00:45]} f5 {[%emt 0:00:46]} 28. Nc5 {[%emt 0:03:31]} Bxc5 {[%emt 0:00:31]} 29. bxc5 {[%emt 0:00:04]} Rf7 {[%emt 0:01:00]} 30. h4 {[%emt 0:06:48]} Qe7 {[%emt 0:01:33]} 31. Bb3 {[%emt 0:02:36]} Rdf8 {[%emt 0:00:12]} 32. Ra1 {[%emt 0:01:40]} g5 {[%emt 0:01:41]} 33. Ra6 {[%emt 0:00:42]} Bd7 {[%emt 0:00:28]} 34. Ra7 {[%emt 0:05:13]} Qf6 {[%emt 0:00:15]} 35. d4 {[%emt 0:01:39]} gxh4 {[%emt 0:03:26]} 36. dxe5 {[%emt 0:00:26]} hxg3+ {[%emt 0:00:05]} 37. fxg3 {[%emt 0:00:05]} Qxe5 {[%emt 0:00:27]} 38. Rdxd7 {[%emt 0:00:32]} Rxd7 {[%emt 0:00:11]} 39. Rxd7 {[%emt 0:00:06]} Ng5 {[%emt 0:00:34]} 40. Qh5 {[%emt 0:00:00]} Rf7 {[%emt 0:00:00]} 41. Qg6+ {[%emt 0:00:00]} Kf8 {[%emt 0:00:00]} 42. Rxf7+ {[%emt 0:00:00]} Nxf7 {[%emt 0:00:00]} 43. Bxe6 {[%emt 0:00:00]} 1-0

[Event "2nd Goa GM Open 2019"]
[Site "Goa"]
[Date "2019.06.18"]
[Round "1.29"]
[White "Amitpal, Singh"]
[Black "Neverov, Valeriy"]
[Result "*"]
[ECO "B23"]
[WhiteElo "2090"]
[BlackElo "2470"]
[Annotator "ChessBase"]
[PlyCount "22"]
[EventDate "2019.06.17"]
[EventType "swiss"]
[EventCountry "IND"]
[SourceTitle "playchess.com"]
[Source "ChessBase"]
[SourceQuality "1"]
[TimeControl "5400+30"]

1. e4 {[%emt 0:00:00]} c5 {[%emt 0:00:00]} 2. Nc3 {[%emt 0:00:07]} a6 {[%emt 0:00:06]} 3. f4 {[%emt 0:00:08]} b5 {[%emt 0:01:06]} 4. Nf3 {[%emt 0:00:24]} Bb7 {[%emt 0:01:07]} 5. d3 {[%emt 0:00:39]} e6 {[%emt 0:04:12]} 6. Ne2 {[%emt 0:00:30]} b4 {[%emt 0:00:30]} 7. g3 {[%emt 0:02:15]} d5 {[%emt 0:00:34]} 8. exd5 {[%emt 0:01:03]} exd5 {[%emt 0:01:31]} 9. Bg2 {[%emt 0:03:28]} Bd6 {[%emt 0:04:21]} 10. O-O {[%emt 0:05:09]} Ne7 {[%emt 0:02:32]} 11. d4 {[%emt 0:02:34]} Nd7 {[%emt 0:05:46]} *

[Event "2nd Goa GM Open 2019"]
[Site "Goa"]
[Date "2019.06.18"]
[Round "1.29"]
[White "Amitpal, Singh"]
[Black "Neverov, Valeriy"]
[Result "0-1"]
[ECO "B23"]
[WhiteElo "2090"]
[BlackElo "2470"]
[Annotator "ChessBase"]
[PlyCount "24"]
[EventDate "2019.06.17"]
[EventType "swiss"]
[EventCountry "IND"]
[SourceTitle "playchess.com"]
[Source "ChessBase"]
[SourceQuality "1"]
[TimeControl "5400+30"]

1. e4 {[%emt 0:00:00]} c5 {[%emt 0:00:00]} 2. Nc3 {[%emt 0:00:07]} a6 {[%emt 0:00:06]} 3. f4 {[%emt 0:00:08]} b5 {[%emt 0:01:06]} 4. Nf3 {[%emt 0:00:24]} Bb7 {[%emt 0:01:07]} 5. d3 {[%emt 0:00:39]} e6 {[%emt 0:04:12]} 6. g3 {[%emt 0:00:30]} b4 {[%emt 0:00:30]} 7. Ne2 {[%emt 0:00:30]} d5 {[%emt 0:00:30]} 8. exd5 {[%emt 0:00:30]} exd5 {[%emt 0:00:30]} 9. Bg2 {[%emt 0:00:30]} Bd6 {[%emt 0:00:30]} 10. Kf2 {[%emt 0:00:30]} Bf8 {[%emt 0:01:35]} 11. Ke1 {[%emt 0:05:46]} Bd6 {[%emt 0:06:23] O-O Ne7} 12. d4 {[%emt 0:07:13]} Nd7 {[%emt 0:05:46]} 0-1

[Event "2nd Goa GM Open 2019"]
[Site "Goa"]
[Date "2019.06.18"]
[Round "1.30"]
[White "Aditya Mittal"]
[Black "Kamdar Udit"]
[Result "1-0"]
[ECO "D43"]
[WhiteElo "2461"]
[BlackElo "2087"]
[Annotator "ChessBase"]
[PlyCount "98"]
[EventDate "2019.06.17"]
[EventType "swiss"]
[EventCountry "IND"]
[SourceTitle "playchess.com"]
[Source "ChessBase"]
[SourceQuality "1"]
[TimeControl "5400+30"]

1. d4 {[%emt 0:00:00]} c6 {[%emt 0:02:43]} 2. c4 {[%emt 0:00:01]} d5 {[%emt 0:00:05]} 3. Nf3 {[%emt 0:00:09]} Nf6 {[%emt 0:00:06]} 4. Nc3 {[%emt 0:00:06]} e6 {[%emt 0:00:04]} 5. g3 {[%emt 0:00:12]} dxc4 {[%emt 0:00:22]} 6. Bg2 {[%emt 0:00:08]} b5 {[%emt 0:00:28]} 7. Ne5 {[%emt 0:00:10]} Nd5 {[%emt 0:00:15]} 8. e4 {[%emt 0:00:18]} Nxc3 {[%emt 0:06:38]} 9. bxc3 {[%emt 0:00:30]} Bb7 {[%emt 0:00:30]} 10. Qh5 {[%emt 0:00:30]} g6 {[%emt 0:00:30]} 11. Qf3 {[%emt 0:00:30]} f6 {[%emt 0:00:30]} 12. Ng4 {[%emt 0:00:30]} Nd7 {[%emt 0:00:30]} 13. h4 {[%emt 0:00:30]} c5 {[%emt 0:00:30]} 14. h5 {[%emt 0:00:30]} Bg7 {[%emt 0:00:30]} 15. Qf4 {[%emt 0:00:30]} g5 {[%emt 0:00:30]} 16. Qd6 {[%emt 0:00:30]} Kf7 {[%emt 0:00:30]} 17. dxc5 {[%emt 0:00:30]} Bf8 {[%emt 0:00:30]} 18. Nh6+ {[%emt 0:00:30]} Bxh6 {[%emt 0:00:30]} 19. c6 {[%emt 0:00:30]} Bf8 {[%emt 0:00:30]} 20. Qxd7+ {[%emt 0:00:30]} Qxd7 {[%emt 0:00:30]} 21. cxd7 {[%emt 0:00:30]} Ke7 {[%emt 0:00:30]} 22. a4 {[%emt 0:00:30]} a6 {[%emt 0:00:30]} 23. O-O {[%emt 0:00:30]} Kxd7 {[%emt 0:00:30]} 24. Rd1+ {[%emt 0:00:30]} Kc7 {[%emt 0:00:30]} 25. e5 {[%emt 0:00:30]} Bxg2 {[%emt 0:00:30]} 26. Kxg2 {[%emt 0:00:30]} Be7 {[%emt 0:00:30]} 27. Ba3 {[%emt 0:00:30]} Bxa3 {[%emt 0:00:30]} 28. Rxa3 {[%emt 0:00:30]} fxe5 {[%emt 0:00:30]} 29. Re1 {[%emt 0:00:30]} Kd6 {[%emt 0:00:30]} 30. Ra2 {[%emt 0:00:30]} Rad8 {[%emt 0:00:30]} 31. axb5 {[%emt 0:00:30]} axb5 {[%emt 0:00:30]} 32. Ra6+ {[%emt 0:00:30]} Kd5 {[%emt 0:00:30]} 33. Rb6 {[%emt 0:00:30]} Kc5 {[%emt 0:00:30]} 34. Rxe6 {[%emt 0:00:30]} Rd5 {[%emt 0:00:30]} 35. R1xe5 {[%emt 0:00:30]} Rb8 {[%emt 0:00:30]} 36. Re7 {[%emt 0:00:30]} b4 {[%emt 0:00:30]} 37. cxb4+ {[%emt 0:00:30]} Rxb4 {[%emt 0:00:30]} 38. Rxd5+ {[%emt 0:00:30]} Kxd5 {[%emt 0:00:30]} 39. Rxh7 {[%emt 0:00:30]} c3 {[%emt 0:00:30]} 40. Rc7 {[%emt 0:00:30]} Kd4 {[%emt 0:00:30]} 41. Kf3 {[%emt 0:00:30]} Kd3 {[%emt 0:00:30]} 42. Rd7+ {[%emt 0:00:30]} Kc2 {[%emt 0:00:30]} 43. h6 {[%emt 0:00:30]} Rb6 {[%emt 0:00:30]} 44. h7 {[%emt 0:00:30]} Rh6 {[%emt 0:00:30]} 45. Kg4 {[%emt 0:00:30]} Kb2 {[%emt 0:00:30]} 46. Rb7+ {[%emt 0:00:30]} Ka2 {[%emt 0:00:30]} 47. Rc7 {[%emt 0:00:30]} Kb2 {[%emt 0:00:30]} 48. Kxg5 {[%emt 0:00:30]} Rh3 {[%emt 0:00:30]} 49. Kg6 {[%emt 0:00:30]} Rh2 {[%emt 0:00:30]} 1-0

[Event "2nd Goa GM Open 2019"]
[Site "Goa"]
[Date "2019.06.18"]
[Round "1.30"]
[White "Aditya Mittal"]
[Black "Kamdar Udit"]
[Result "*"]
[ECO "B30"]
[WhiteElo "2461"]
[BlackElo "2087"]
[Annotator "ChessBase"]
[PlyCount "105"]
[EventDate "2019.06.17"]
[EventType "swiss"]
[EventCountry "IND"]
[SourceTitle "playchess.com"]
[Source "ChessBase"]
[SourceQuality "1"]
[TimeControl "5400+30"]

1. e4 {[%emt 0:00:00]} c5 {[%emt 0:04:29]} 2. Nf3 {[%emt 0:00:00]} Nc6 {[%emt 0:00:12]} 3. Be2 {[%emt 0:00:00]} g6 {[%emt 0:00:21]} 4. O-O {[%emt 0:00:00]} Bg7 {[%emt 0:00:05]} 5. Re1 {[%emt 0:01:03]} Nf6 {[%emt 0:06:12]} 6. Bf1 {[%emt 0:00:08]} d5 {[%emt 0:00:39]} 7. e5 {[%emt 0:03:19]} Ng4 {[%emt 0:03:31]} 8. Bb5 {[%emt 0:00:08]} Qc7 {[%emt 0:19:21]} 9. d4 {[%emt 0:08:52]} cxd4 {[%emt 0:02:02]} 10. Qxd4 {[%emt 0:01:33]} O-O {[%emt 0:06:40]} 11. Bxc6 {[%emt 0:02:35]} bxc6 {[%emt 0:00:48]} 12. Nc3 {[%emt 0:02:09]} h5 {[%emt 0:11:03]} 13. Bf4 {[%emt 0:01:08]} Nh6 {[%emt 0:23:53]} 14. Na4 {[%emt 0:03:17]} Bg4 {[%emt 0:01:03]} 15. Nd2 {[%emt 0:02:06]} Nf5 {[%emt 0:01:18]} 16. Qc3 {[%emt 0:00:37]} Bh6 {[%emt 0:00:24]} 17. Bxh6 {[%emt 0:02:48]} Nxh6 {[%emt 0:00:03]} 18. Nc5 {[%emt 0:00:23]} Be6 {[%emt 0:01:21]} 19. Nf3 {[%emt 0:00:33]} Nf5 {[%emt 0:00:36]} 20. Ng5 {[%emt 0:05:54]} Ng7 {[%emt 0:00:19]} 21. h3 {[%emt 0:04:20]} Qc8 {[%emt 0:00:17]} 22. f3 {[%emt 0:00:50]} Rb8 {[%emt 0:00:51]} 23. b4 {[%emt 0:00:31]} Bf5 {[%emt 0:01:16]} 24. Kh1 {[%emt 0:01:58]} Ne6 {[%emt 0:00:13]} 25. Ngxe6 {[%emt 0:01:01]} Bxe6 {[%emt 0:00:03]} 26. Qd4 {[%emt 0:02:56]} Kh7 {[%emt 0:02:22]} 27. Re3 {[%emt 0:00:17]} Bf5 {[%emt 0:00:56]} 28. g4 {[%emt 0:02:45]} hxg4 {[%emt 0:01:13]} 29. hxg4 {[%emt 0:00:10]} Be6 {[%emt 0:00:42]} 30. Kg2 {[%emt 0:00:31]} Rh8 {[%emt 0:00:12]} 31. Ree1 {[%emt 0:00:34]} Kg7 {[%emt 0:01:28]} 32. Rh1 {[%emt 0:00:15]} Qc7 {[%emt 0:00:41]} 33. Qf4 {[%emt 0:02:14]} Rbe8 {[%emt 0:04:33]} 34. Rab1 {[%emt 0:02:05]} Qc8 {[%emt 0:01:19]} 35. Rxh8 {[%emt 0:02:26]} Rxh8 {[%emt 0:00:02]} 36. Rb3 {[%emt 0:00:42]} Qg8 {[%emt 0:02:42]} 37. Qg3 {[%emt 0:07:50]} Qh7 {[%emt 0:00:19]} 38. Rb1 {[%emt 0:00:41]} g5 {[%emt 0:00:36]} 39. Nd3 {[%emt 0:01:46]} Bc8 {[%emt 0:01:02]} 40. Rc1 {[%emt 0:00:00]} Ba6 {[%emt 0:00:00]} 41. Nf2 {[%emt 0:00:00]} e6 {[%emt 0:00:00]} 42. Nh3 {[%emt 0:00:00]} Qh6 {[%emt 0:00:00]} 43. Rh1 {[%emt 0:00:00]} Bc4 {[%emt 0:00:00]} 44. a3 {[%emt 0:00:00]} Qg6 {[%emt 0:00:00]} 45. Qf2 {[%emt 0:00:00]} d4 {[%emt 0:00:00]} 46. Qd2 {[%emt 0:00:00]} Bd5 {[%emt 0:00:00]} 47. Nxg5 {[%emt 0:00:00]} Bxf3+ {[%emt 0:00:00]} 48. Kxf3 {[%emt 0:00:00]} Rxh1 {[%emt 0:00:00]} 49. Kf4 {[%emt 0:00:00]} Qh6 {[%emt 0:01:12]} 50. Ke4 {[%emt 0:00:00]} Qh2 51. Nxe6+ fxe6 {[%emt 0:05:44]} 52. Qg5+ {[%emt 0:00:00]} Kh7 {[%emt 0:00:47]} 53. Qe7+ {[%emt 0:00:00]} *

[Event "2nd Goa GM Open 2019"]
[Site "Goa"]
[Date "2019.06.19"]
[Round "2.6"]
[White "Abhishek, Kelkar"]
[Black "Idani, Pouya"]
[Result "1/2-1/2"]
[ECO "B06"]
[WhiteElo "2323"]
[BlackElo "2597"]
[Annotator "RC"]
[PlyCount "63"]
[EventDate "2019.06.17"]
[EventType "swiss"]
[EventCountry "IND"]
[SourceTitle "playchess.com"]
[Source "ChessBase"]
[SourceQuality "1"]
[TimeControl "5400+30"]

1. d4 {[%emt 0:03:19]} g6 {[%emt 0:00:00]} 2. e4 {[%emt 0:01:46]} Bg7 {[%emt 0:00:00]} 3. Nf3 {[%emt 0:00:14]} d6 {[%emt 0:00:14]} 4. Bd3 {[%emt 0:01:42]} Nf6 {[%emt 0:00:28]} 5. O-O {[%emt 0:00:14]} O-O {[%emt 0:00:04]} 6. c3 {[%emt 0:00:06]} Nc6 {[%emt 0:01:04]} 7. d5 {[%emt 0:03:54]} Nb8 {[%emt 0:01:14]} 8. c4 {[%emt 0:00:11]} e5 {[%emt 0:03:06]} 9. Nc3 {[%emt 0:10:08]} c5 {[%emt 0:01:12]} 10. a3 {[%emt 0:01:18]} Na6 {[%emt 0:01:08]} 11. Rb1 {[%emt 0:00:18]} Ne8 {[%emt 0:00:46]} 12. Bc2 {[%emt 0:08:52]} f5 {[%emt 0:04:58]} 13. Ba4 {[%emt 0:02:01]} f4 {[%emt 0:00:33]} 14. Bxe8 {[%emt 0:00:34]} Rxe8 {[%emt 0:03:33]} 15. Ne1 {[%emt 0:00:50]} g5 {[%emt 0:00:36]} 16. f3 {[%emt 0:00:12]} Rf8 {[%emt 0:08:11]} 17. g4 {[%emt 0:09:31]} h5 {[%emt 0:01:58]} 18. h3 {[%emt 0:00:10]} Bd7 {[%emt 0:04:13]} 19. Kg2 {[%emt 0:01:49]} Kf7 {[%emt 0:04:18]} 20. Bd2 {[%emt 0:01:45]} Rh8 {[%emt 0:00:25]} 21. Nd3 {[%emt 0:00:31]} hxg4 {[%emt 0:07:29]} 22. hxg4 {[%emt 0:00:16]} Qf6 {[%emt 0:00:24]} 23. Qe2 {[%emt 0:02:13]} Rh4 {[%emt 0:03:48]} 24. Rh1 {[%emt 0:03:35]} Rah8 {[%emt 0:00:11]} 25. Rxh4 {[%emt 0:00:36]} gxh4 {[%emt 0:00:04]} 26. Kh3 {[%emt 0:00:22]} Bh6 {[%emt 0:06:21]} 27. Nf2 {[%emt 0:00:55]} Rc8 {[%emt 0:07:20]} 28. Nb5 {[%emt 0:08:02]} Nc7 {[%emt 0:01:45]} 29. Nxc7 {[%emt 0:04:59]} Rxc7 {[%emt 0:01:43]} 30. Bc3 {[%emt 0:00:09]} Rc8 {[%emt 0:01:30]} 31. b3 {[%emt 0:00:19]} a6 {[%emt 0:00:53]} 32. a4 {[%emt 0:00:12]} 1/2-1/2

[Event "2nd Goa GM Open 2019"]
[Site "Goa"]
[Date "2019.06.19"]
[Round "2.7"]
[White "Neelash Saha"]
[Black "Stupak, Kirill"]
[Result "1/2-1/2"]
[ECO "B07"]
[WhiteElo "2315"]
[BlackElo "2584"]
[Annotator "RC"]
[PlyCount "233"]
[EventDate "2019.06.17"]
[EventType "swiss"]
[EventCountry "IND"]
[SourceTitle "playchess.com"]
[Source "ChessBase"]
[SourceQuality "1"]
[TimeControl "5400+30"]

1. d4 {[%emt 0:00:00]} g6 {[%emt 0:00:00]} 2. e4 {[%emt 0:02:04]} Bg7 {[%emt 0:03:12]} 3. Nc3 {[%emt 0:00:05]} d6 {[%emt 0:00:06]} 4. Be2 {[%emt 0:00:04]} Nf6 {[%emt 0:00:18]} 5. h4 {[%emt 0:00:05]} c5 {[%emt 0:04:58]} 6. d5 {[%emt 0:18:54]} Na6 {[%emt 0:09:23]} 7. Nh3 {[%emt 0:07:32]} Nc7 {[%emt 0:01:01]} 8. h5 {[%emt 0:00:26]} e6 {[%emt 0:06:21]} 9. dxe6 {[%emt 0:05:24]} Nxe6 {[%emt 0:09:51]} 10. h6 {[%emt 0:02:24]} Bf8 {[%emt 0:00:27]} 11. Be3 {[%emt 0:03:48]} a6 {[%emt 0:06:26]} 12. g4 {[%emt 0:09:19]} b5 {[%emt 0:01:49]} 13. g5 {[%emt 0:00:03]} b4 {[%emt 0:01:50]} 14. Nd5 {[%emt 0:00:05]} Nxd5 {[%emt 0:00:40]} 15. Qxd5 {[%emt 0:01:41]} Nc7 {[%emt 0:03:38]} 16. Qd2 {[%emt 0:01:22]} Bb7 {[%emt 0:00:56]} 17. O-O-O {[%emt 0:00:13]} Be7 {[%emt 0:04:20]} 18. f3 {[%emt 0:03:52]} d5 {[%emt 0:01:46]} 19. Qe1 {[%emt 0:03:27]} d4 {[%emt 0:04:40]} 20. Qg3 {[%emt 0:03:04]} Ne6 {[%emt 0:04:12]} 21. Bd2 {[%emt 0:03:56]} Bd6 {[%emt 0:08:22]} 22. Qg2 {[%emt 0:00:05]} Qc7 {[%emt 0:01:16]} 23. Bc4 {[%emt 0:00:05]} O-O-O {[%emt 0:00:54]} 24. Qe2 {[%emt 0:01:02]} a5 {[%emt 0:10:51]} 25. f4 {[%emt 0:05:08]} Rhe8 {[%emt 0:00:46]} 26. Rhe1 {[%emt 0:00:39]} Kb8 {[%emt 0:03:25]} 27. Qg4 {[%emt 0:00:34]} Bc8 {[%emt 0:03:00]} 28. Qf3 {[%emt 0:01:45]} Bb7 {[%emt 0:02:10]} 29. Rf1 {[%emt 0:02:18]} Nf8 {[%emt 0:01:15]} 30. Rde1 {[%emt 0:00:06]} Nd7 {[%emt 0:00:04]} 31. Bxf7 Rf8 32. Be6 {[%emt 0:02:10]} c4 {[%emt 0:00:19]} 33. Bxd7 {[%emt 0:01:24]} Rxd7 {[%emt 0:00:45]} 34. Kb1 {[%emt 0:00:16]} c3 {[%emt 0:01:11]} 35. Bc1 {[%emt 0:00:06]} Ba6 {[%emt 0:00:20]} 36. Rd1 {[%emt 0:05:50]} Rc8 {[%emt 0:02:12]} 37. Rf2 {[%emt 0:03:45]} d3 {[%emt 0:00:16]} 38. Rxd3 {[%emt 0:01:51]} Bxd3 {[%emt 0:00:06]} 39. cxd3 {[%emt 0:00:13]} Bc5 {[%emt 0:02:50]} 40. Rc2 {[%emt 0:01:03]} Rcd8 {[%emt 0:00:14]} 41. Nf2 {[%emt 0:01:20]} Bxf2 {[%emt 0:00:48]} 42. Qxf2 {[%emt 0:00:04]} Rxd3 {[%emt 0:00:06]} 43. f5 {[%emt 0:00:03]} Rd1 {[%emt 0:02:21]} 44. fxg6 {[%emt 0:01:24]} hxg6 {[%emt 0:00:01]} 45. Qe2 {[%emt 0:00:32]} Rh1 {[%emt 0:02:23]} 46. Qb5+ {[%emt 0:00:16]} Ka7 {[%emt 0:00:17]} 47. a3 {[%emt 0:02:21]} Rd2 {[%emt 0:00:09]} 48. Qa4 {[%emt 0:00:25]} Rxc2 {[%emt 0:01:04]} 49. Qxc2 {[%emt 0:00:02]} Rh2 {[%emt 0:00:12]} 50. Qb3 {[%emt 0:01:48]} Rh1 {[%emt 0:00:35]} 51. axb4 {[%emt 0:05:04]} cxb2 {[%emt 0:00:01]} 52. Qxb2 {[%emt 0:00:06]} axb4 {[%emt 0:00:13]} 53. e5 {[%emt 0:03:30]} Qc4 {[%emt 0:01:10]} 54. Qc2 {[%emt 0:02:04]} Qxc2+ {[%emt 0:00:06]} 55. Kxc2 {[%emt 0:00:05]} Kb6 {[%emt 0:00:05]} 56. Bb2 {[%emt 0:00:52]} Kc6 {[%emt 0:01:07]} 57. Kb3 {[%emt 0:01:29]} Rh4 {[%emt 0:00:01]} 58. Bc1 {[%emt 0:00:38]} Kd5 {[%emt 0:00:45]} 59. Bd2 {[%emt 0:00:05]} Rg4 {[%emt 0:00:05]} 60. Bc1 {[%emt 0:00:54]} Ke6 {[%emt 0:00:24]} 61. Bd2 {[%emt 0:00:16]} Kf5 {[%emt 0:01:21]} 62. Bc1 {[%emt 0:00:06]} Rd4 {[%emt 0:00:52]} 63. Bb2 {[%emt 0:01:23]} Rh4 {[%emt 0:00:08]} 64. Bc1 {[%emt 0:00:33]} Kxe5 {[%emt 0:00:11]} 65. Bb2+ {[%emt 0:00:17]} Kd5 {[%emt 0:00:19]} 66. Bf6 {[%emt 0:00:42]} Kc5 {[%emt 0:00:06]} 67. Bg7 {[%emt 0:00:23]} Rh3+ {[%emt 0:00:06]} 68. Ka2 {[%emt 0:00:06]} Kc4 {[%emt 0:00:03]} 69. Be5 {[%emt 0:00:20]} Kd5 {[%emt 0:01:26]} 70. Bf6 {[%emt 0:00:09]} Ke6 {[%emt 0:00:03]} 71. Bd8 {[%emt 0:00:23]} Kf5 {[%emt 0:02:11]} 72. Be7 {[%emt 0:00:38]} Rg3 {[%emt 0:00:37]} 73. Bf6 {[%emt 0:00:17]} Rh3 {[%emt 0:00:15]} 74. Be7 {[%emt 0:00:05]} Kf4 {[%emt 0:00:43]} 75. Kb2 {[%emt 0:00:18]} b3 {[%emt 0:00:32]} 76. Ka3 {[%emt 0:01:00]} Ke4 {[%emt 0:00:21]} 77. Bf6 {[%emt 0:00:25]} Kd5 {[%emt 0:00:04]} 78. Kb2 {[%emt 0:00:54]} Kc5 {[%emt 0:00:01]} 79. Bc3 {[%emt 0:00:14]} Kc4 {[%emt 0:00:06]} 80. Be5 {[%emt 0:00:04]} Kb4 {[%emt 0:00:15]} 81. Bd6+ {[%emt 0:00:02]} Kb5 {[%emt 0:00:17]} 82. Ka3 {[%emt 0:02:13]} Kc4 {[%emt 0:00:04]} 83. Be5 {[%emt 0:00:03]} Kd3 {[%emt 0:02:13]} 84. Kb2 {[%emt 0:00:19]} Ke4 {[%emt 0:00:40]} 85. Bf6 {[%emt 0:00:07]} Kd5 {[%emt 0:00:23]} 86. Ka3 {[%emt 0:00:37]} Kc5 {[%emt 0:00:00]} 87. Bg7 {[%emt 0:00:22]} Kb5 {[%emt 0:00:39]} 88. Bf6 {[%emt 0:00:08]} Kc4 {[%emt 0:00:40]} 89. Be5 {[%emt 0:00:06]} Rh5 {[%emt 0:00:05]} 90. Kb2 {[%emt 0:00:27]} Kb4 {[%emt 0:00:09]} 91. Bd6+ {[%emt 0:01:40]} Ka4 {[%emt 0:00:04]} 92. Bf4 {[%emt 0:00:15]} Rh4 {[%emt 0:00:34]} 93. Be5 {[%emt 0:00:04]} Rh3 {[%emt 0:00:04]} 94. Bf4 {[%emt 0:01:01]} Rf3 {[%emt 0:01:28]} 95. Be5 {[%emt 0:00:05]} Rf2+ {[%emt 0:00:02]} 96. Kb1 {[%emt 0:00:11]} Rf1+ {[%emt 0:01:33]} 97. Kb2 {[%emt 0:00:08]} Rh1 {[%emt 0:00:04]} 98. Bg3 {[%emt 0:01:29]} Rd1 {[%emt 0:01:22]} 99. Be5 {[%emt 0:00:16]} Rd7 {[%emt 0:00:47]} 100. Bg7 {[%emt 0:01:45]} Rd2+ {[%emt 0:00:01]} 101. Kc1 {[%emt 0:00:06]} Rh2 {[%emt 0:00:55]} 102. Be5 {[%emt 0:00:05]} Rh3 {[%emt 0:00:37]} 103. Kb2 {[%emt 0:00:06]} Rh1 {[%emt 0:00:04]} 104. Bg3 {[%emt 0:00:06]} Rf1 {[%emt 0:00:51]} 105. Be5 {[%emt 0:00:08]} Rf2+ {[%emt 0:00:17]} 106. Kb1 {[%emt 0:00:04]} Rf7 {[%emt 0:00:41]} 107. Kb2 {[%emt 0:00:30]} Kb4 {[%emt 0:00:17]} 108. Bc3+ {[%emt 0:01:39]} Kc4 {[%emt 0:00:03]} 109. Bg7 {[%emt 0:00:49]} Rf2+ {[%emt 0:00:55]} 110. Kb1 {[%emt 0:00:04]} Rh2 111. Be5 {[%emt 0:00:07]} Rh1+ {[%emt 0:00:52]} 112. Kb2 {[%emt 0:00:03]} Rh3 {[%emt 0:00:03]} 113. Ka3 {[%emt 0:00:33]} Re3 {[%emt 0:01:25]} 114. h7 {[%emt 0:00:10]} Re2 {[%emt 0:00:03]} 115. Bb2 {[%emt 0:00:03]} Re7 {[%emt 0:00:03]} 116. Bg7 {[%emt 0:00:03]} Re2 {[%emt 0:00:53]} 117. Bb2 {[%emt 0:00:05]} 1/2-1/2

[Event "2nd Goa GM Open 2019"]
[Site "Goa"]
[Date "2019.06.19"]
[Round "2.11"]
[White "Siva Mahadevan"]
[Black "Deepan Chakkravarthy J."]
[Result "0-1"]
[ECO "D85"]
[WhiteElo "2298"]
[BlackElo "2557"]
[Annotator "ChessBase"]
[PlyCount "100"]
[EventDate "2019.06.17"]
[EventType "swiss"]
[EventCountry "IND"]
[SourceTitle "playchess.com"]
[Source "ChessBase"]
[SourceQuality "1"]
[TimeControl "5400+30"]

1. d4 {[%emt 0:00:00]} Nf6 {[%emt 0:01:06]} 2. c4 {[%emt 0:00:00]} g6 {[%emt 0:00:34]} 3. Nc3 {[%emt 0:00:00]} d5 {[%emt 0:00:05]} 4. cxd5 {[%emt 0:01:33]} Nxd5 {[%emt 0:00:07]} 5. e4 {[%emt 0:00:40]} Nxc3 {[%emt 0:00:06]} 6. bxc3 {[%emt 0:00:04]} Bg7 {[%emt 0:00:26]} 7. Nf3 {[%emt 0:00:16]} c5 {[%emt 0:01:07]} 8. Rb1 {[%emt 0:00:05]} O-O {[%emt 0:02:22]} 9. Be2 {[%emt 0:00:02]} Nd7 {[%emt 0:04:28]} 10. O-O {[%emt 0:01:34]} b6 {[%emt 0:08:42]} 11. Qd3 {[%emt 0:02:45]} Nf6 {[%emt 0:11:10]} 12. Ba3 {[%emt 0:19:44]} Qc7 {[%emt 0:15:46]} 13. e5 {[%emt 0:12:23]} Bf5 {[%emt 0:04:21]} 14. Qd2 {[%emt 0:02:42]} Ne4 {[%emt 0:06:09]} 15. Qe3 {[%emt 0:00:42]} cxd4 {[%emt 0:00:05]} 16. cxd4 {[%emt 0:00:09]} Nc3 {[%emt 0:00:05]} 17. Rbc1 {[%emt 0:00:14]} Nxe2+ {[%emt 0:00:30]} 18. Qxe2 {[%emt 0:00:02]} Qb7 {[%emt 0:00:07]} 19. Rc3 {[%emt 0:08:32]} Rfc8 {[%emt 0:02:36]} 20. Rfc1 {[%emt 0:01:51]} Bh6 {[%emt 0:05:46]} 21. Rxc8+ {[%emt 0:00:28]} Rxc8 {[%emt 0:00:01]} 22. Rxc8+ {[%emt 0:00:11]} Bxc8 {[%emt 0:00:04]} 23. Qb5 {[%emt 0:08:21]} Bd7 {[%emt 0:00:49]} 24. Qb4 {[%emt 0:01:08]} Bf8 {[%emt 0:00:14]} 25. Bc1 {[%emt 0:06:35]} Bc6 {[%emt 0:02:38]} 26. Qc3 {[%emt 0:04:04]} Bd5 {[%emt 0:00:45]} 27. a3 {[%emt 0:00:32]} Qc6 {[%emt 0:00:23]} 28. Qxc6 {[%emt 0:01:18]} Bxc6 {[%emt 0:00:27]} 29. Kf1 {[%emt 0:00:15]} f6 {[%emt 0:00:59]} 30. Bb2 {[%emt 0:02:46]} Kf7 {[%emt 0:00:59]} 31. Ke2 {[%emt 0:00:30]} Ke6 {[%emt 0:00:11]} 32. Ne1 {[%emt 0:03:18]} fxe5 {[%emt 0:12:00]} 33. dxe5 {[%emt 0:00:18]} Bg7 {[%emt 0:00:10]} 34. f4 {[%emt 0:01:33]} g5 {[%emt 0:00:12]} 35. fxg5 {[%emt 0:00:55]} Bxe5 {[%emt 0:00:06]} 36. Bxe5 {[%emt 0:00:10]} Kxe5 {[%emt 0:00:04]} 37. Ke3 {[%emt 0:03:15]} Kf5 {[%emt 0:00:47]} 38. h4 {[%emt 0:00:38]} a5 {[%emt 0:01:19]} 39. Nf3 {[%emt 0:03:39]} Be8 {[%emt 0:05:14]} 40. Kd4 {[%emt 0:04:46]} Kg4 {[%emt 0:05:36]} 41. Kd5 {[%emt 0:05:56]} b5 {[%emt 0:00:44]} 42. Ke6 {[%emt 0:03:28]} b4 {[%emt 0:00:37]} 43. axb4 {[%emt 0:00:09]} axb4 {[%emt 0:00:02]} 44. Kxe7 {[%emt 0:00:38]} Bg6 {[%emt 0:00:06]} 45. Nd4 {[%emt 0:03:37]} Kxh4 {[%emt 0:00:10]} 46. Kf6 {[%emt 0:00:14]} Kg4 {[%emt 0:00:40]} 47. Ke5 {[%emt 0:00:23]} Kxg5 {[%emt 0:00:20]} 48. Kd5 {[%emt 0:00:58]} b3 {[%emt 0:00:46]} 49. Nxb3 {[%emt 0:00:19]} Bf7+ {[%emt 0:00:04]} 50. Kd4 {[%emt 0:00:04]} Bxb3 {[%emt 0:00:03]} 0-1